{"text_format":"1","workbook":"xlsx","n_sheets":4,"sheets":["使用方法","入力欄","import_csv","IndustryType"],"not_rendered":{"charts":0,"images":1,"macros":1,"external_links":0,"defined_names":1,"comments":0,"pivot_tables":0},"unopened":[],"bounds":{"document_bytes":16777216,"sheet_cells":100000,"rows_first":2000,"rows_last":500,"rows_between":2000,"halvings":0,"cell_chars":16384,"cell_head_chars":4096},"cells_cut":0,"cells_raw":0,"read":"whole","date_system":"1900"}

{"sheet":"使用方法","index":0,"n_rows":13,"n_cols":2,"rows_kept":13,"cut":false,"hidden":false,"merged":[[6,1,6,13]]}
["店舗追加用CSV作成方法"]
["※手順はご注意の下にあります"]
[null,"ご注意"]
[null,"当ファイルを開くとセキュリティ機能によりマクロの実行が自動的にブロックされることがあります。"]
[null,"マクロがブロックされると「CSV作成」機能が動作しないため、手順をご参考の上マクロ有効化の操作をお願いします。"]
[null,"マクロを実行できるようにするための手順"]
[null,{"$error":"#VALUE!"}]
[]
[null,"手順"]
[1,"入力欄シートにデータを記載してください。"]
[2,"赤色で表示されている項目がないことを確認してください。"]
[3,"「csv作成」を押下し、CSVを作成してください。"]
[4,"当ファイルと同じフォルダに「shop_template_日時.csv」が作成されます。"]

{"sheet":"入力欄","index":1,"n_rows":498,"n_cols":9,"rows_kept":498,"cut":false,"hidden":false,"merged":[]}
["店舗名","業種","郵便番号(ハイフンなし)","住所","店舗電話番号(ハイフンなし)","緊急連絡先(ハイフンなし)","店舗代表管理者メールアドレス"]
[null,null,null,null,null,null,null,{"$f":"A2&\",\"&B2&\",\"&E2","v":",,"},{"$f":"COUNTIF($H$2:$H$1048576,IF($H2=\",,\",\" \",$H2))","v":0}]
[null,null,null,null,null,null,null,{"$f":"A3&\",\"&B3&\",\"&E3","v":",,"},0]
[null,null,null,null,null,null,null,{"$f":"A4&\",\"&B4&\",\"&E4","v":",,"},0]
[null,null,null,null,null,null,null,",,",0]
[null,null,null,null,null,null,null,",,",0]
[null,null,null,null,null,null,null,",,",0]
[null,null,null,null,null,null,null,",,",0]
[null,null,null,null,null,null,null,",,",0]
[null,null,null,null,null,null,null,",,",0]
[null,null,null,null,null,null,null,",,",0]
[null,null,null,null,null,null,null,",,",0]
[null,null,null,null,null,null,null,",,",0]
[null,null,null,null,null,null,null,",,",0]
[null,null,null,null,null,null,null,",,",0]
[null,null,null,null,null,null,null,",,",0]
[null,null,null,null,null,null,null,",,",0]
[null,null,null,null,null,null,null,",,",0]
[null,null,null,null,null,null,null,",,",0]
[null,null,null,null,null,null,null,",,",0]
[null,null,null,null,null,null,null,",,",0]
[null,null,null,null,null,null,null,",,",0]
[null,null,null,null,null,null,null,",,",0]
[null,null,null,null,null,null,null,",,",0]
[null,null,null,null,null,null,null,",,",0]
[null,null,null,null,null,null,null,",,",0]
[null,null,null,null,null,null,null,",,",0]
[null,null,null,null,null,null,null,",,",0]
[null,null,null,null,null,null,null,",,",0]
[null,null,null,null,null,null,null,",,",0]
[null,null,null,null,null,null,null,",,",0]
[null,null,null,null,null,null,null,",,",0]
[null,null,null,null,null,null,null,",,",0]
[null,null,null,null,null,null,null,",,",0]
[null,null,null,null,null,null,null,",,",0]
[null,null,null,null,null,null,null,",,",0]
[null,null,null,null,null,null,null,",,",0]
[null,null,null,null,null,null,null,",,",0]
[null,null,null,null,null,null,null,",,",0]
[null,null,null,null,null,null,null,",,",0]
[null,null,null,null,null,null,null,",,",0]
[null,null,null,null,null,null,null,",,",0]
[null,null,null,null,null,null,null,",,",0]
[null,null,null,null,null,null,null,",,",0]
[null,null,null,null,null,null,null,",,",0]
[null,null,null,null,null,null,null,",,",0]
[null,null,null,null,null,null,null,",,",0]
[null,null,null,null,null,null,null,",,",0]
[null,null,null,null,null,null,null,",,",0]
[null,null,null,null,null,null,null,",,",0]
[null,null,null,null,null,null,null,",,",0]
[null,null,null,null,null,null,null,",,",0]
[null,null,null,null,null,null,null,",,",0]
[null,null,null,null,null,null,null,",,",0]
[null,null,null,null,null,null,null,",,",0]
[null,null,null,null,null,null,null,",,",0]
[null,null,null,null,null,null,null,",,",0]
[null,null,null,null,null,null,null,",,",0]
[null,null,null,null,null,null,null,",,",0]
[null,null,null,null,null,null,null,",,",0]
[null,null,null,null,null,null,null,",,",0]
[null,null,null,null,null,null,null,",,",0]
[null,null,null,null,null,null,null,",,",0]
[null,null,null,null,null,null,null,",,",0]
[null,null,null,null,null,null,null,",,",0]
[null,null,null,null,null,null,null,",,",{"$f":"COUNTIF($H$2:$H$1048576,IF($H66=\",,\",\" \",$H66))","v":0}]
[null,null,null,null,null,null,null,{"$f":"A67&\",\"&B67&\",\"&E67","v":",,"},0]
[null,null,null,null,null,null,null,",,",0]
[null,null,null,null,null,null,null,",,",0]
[null,null,null,null,null,null,null,",,",0]
[null,null,null,null,null,null,null,",,",0]
[null,null,null,null,null,null,null,",,",0]
[null,null,null,null,null,null,null,",,",0]
[null,null,null,null,null,null,null,",,",0]
[null,null,null,null,null,null,null,",,",0]
[null,null,null,null,null,null,null,",,",0]
[null,null,null,null,null,null,null,",,",0]
[null,null,null,null,null,null,null,",,",0]
[null,null,null,null,null,null,null,",,",0]
[null,null,null,null,null,null,null,",,",0]
[null,null,null,null,null,null,null,",,",0]
[null,null,null,null,null,null,null,",,",0]
[null,null,null,null,null,null,null,",,",0]
[null,null,null,null,null,null,null,",,",0]
[null,null,null,null,null,null,null,",,",0]
[null,null,null,null,null,null,null,",,",0]
[null,null,null,null,null,null,null,",,",0]
[null,null,null,null,null,null,null,",,",0]
[null,null,null,null,null,null,null,",,",0]
[null,null,null,null,null,null,null,",,",0]
[null,null,null,null,null,null,null,",,",0]
[null,null,null,null,null,null,null,",,",0]
[null,null,null,null,null,null,null,",,",0]
[null,null,null,null,null,null,null,",,",0]
[null,null,null,null,null,null,null,",,",0]
[null,null,null,null,null,null,null,",,",0]
[null,null,null,null,null,null,null,",,",0]
[null,null,null,null,null,null,null,",,",0]
[null,null,null,null,null,null,null,",,",0]
[null,null,null,null,null,null,null,",,",0]
[null,null,null,null,null,null,null,",,",0]
[null,null,null,null,null,null,null,",,",0]
[null,null,null,null,null,null,null,",,",0]
[null,null,null,null,null,null,null,",,",0]
[null,null,null,null,null,null,null,",,",0]
[null,null,null,null,null,null,null,",,",0]
[null,null,null,null,null,null,null,",,",0]
[null,null,null,null,null,null,null,",,",0]
[null,null,null,null,null,null,null,",,",0]
[null,null,null,null,null,null,null,",,",0]
[null,null,null,null,null,null,null,",,",0]
[null,null,null,null,null,null,null,",,",0]
[null,null,null,null,null,null,null,",,",0]
[null,null,null,null,null,null,null,",,",0]
[null,null,null,null,null,null,null,",,",0]
[null,null,null,null,null,null,null,",,",0]
[null,null,null,null,null,null,null,",,",0]
[null,null,null,null,null,null,null,",,",0]
[null,null,null,null,null,null,null,",,",0]
[null,null,null,null,null,null,null,",,",0]
[null,null,null,null,null,null,null,",,",0]
[null,null,null,null,null,null,null,",,",0]
[null,null,null,null,null,null,null,",,",0]
[null,null,null,null,null,null,null,",,",0]
[null,null,null,null,null,null,null,",,",0]
[null,null,null,null,null,null,null,",,",0]
[null,null,null,null,null,null,null,",,",0]
[null,null,null,null,null,null,null,",,",0]
[null,null,null,null,null,null,null,",,",0]
[null,null,null,null,null,null,null,",,",{"$f":"COUNTIF($H$2:$H$1048576,IF($H130=\",,\",\" \",$H130))","v":0}]
[null,null,null,null,null,null,null,{"$f":"A131&\",\"&B131&\",\"&E131","v":",,"},0]
[null,null,null,null,null,null,null,",,",0]
[null,null,null,null,null,null,null,",,",0]
[null,null,null,null,null,null,null,",,",0]
[null,null,null,null,null,null,null,",,",0]
[null,null,null,null,null,null,null,",,",0]
[null,null,null,null,null,null,null,",,",0]
[null,null,null,null,null,null,null,",,",0]
[null,null,null,null,null,null,null,",,",0]
[null,null,null,null,null,null,null,",,",0]
[null,null,null,null,null,null,null,",,",0]
[null,null,null,null,null,null,null,",,",0]
[null,null,null,null,null,null,null,",,",0]
[null,null,null,null,null,null,null,",,",0]
[null,null,null,null,null,null,null,",,",0]
[null,null,null,null,null,null,null,",,",0]
[null,null,null,null,null,null,null,",,",0]
[null,null,null,null,null,null,null,",,",0]
[null,null,null,null,null,null,null,",,",0]
[null,null,null,null,null,null,null,",,",0]
[null,null,null,null,null,null,null,",,",0]
[null,null,null,null,null,null,null,",,",0]
[null,null,null,null,null,null,null,",,",0]
[null,null,null,null,null,null,null,",,",0]
[null,null,null,null,null,null,null,",,",0]
[null,null,null,null,null,null,null,",,",0]
[null,null,null,null,null,null,null,",,",0]
[null,null,null,null,null,null,null,",,",0]
[null,null,null,null,null,null,null,",,",0]
[null,null,null,null,null,null,null,",,",0]
[null,null,null,null,null,null,null,",,",0]
[null,null,null,null,null,null,null,",,",0]
[null,null,null,null,null,null,null,",,",0]
[null,null,null,null,null,null,null,",,",0]
[null,null,null,null,null,null,null,",,",0]
[null,null,null,null,null,null,null,",,",0]
[null,null,null,null,null,null,null,",,",0]
[null,null,null,null,null,null,null,",,",0]
[null,null,null,null,null,null,null,",,",0]
[null,null,null,null,null,null,null,",,",0]
[null,null,null,null,null,null,null,",,",0]
[null,null,null,null,null,null,null,",,",0]
[null,null,null,null,null,null,null,",,",0]
[null,null,null,null,null,null,null,",,",0]
[null,null,null,null,null,null,null,",,",0]
[null,null,null,null,null,null,null,",,",0]
[null,null,null,null,null,null,null,",,",0]
[null,null,null,null,null,null,null,",,",0]
[null,null,null,null,null,null,null,",,",0]
[null,null,null,null,null,null,null,",,",0]
[null,null,null,null,null,null,null,",,",0]
[null,null,null,null,null,null,null,",,",0]
[null,null,null,null,null,null,null,",,",0]
[null,null,null,null,null,null,null,",,",0]
[null,null,null,null,null,null,null,",,",0]
[null,null,null,null,null,null,null,",,",0]
[null,null,null,null,null,null,null,",,",0]
[null,null,null,null,null,null,null,",,",0]
[null,null,null,null,null,null,null,",,",0]
[null,null,null,null,null,null,null,",,",0]
[null,null,null,null,null,null,null,",,",0]
[null,null,null,null,null,null,null,",,",0]
[null,null,null,null,null,null,null,",,",0]
[null,null,null,null,null,null,null,",,",{"$f":"COUNTIF($H$2:$H$1048576,IF($H194=\",,\",\" \",$H194))","v":0}]
[null,null,null,null,null,null,null,{"$f":"A195&\",\"&B195&\",\"&E195","v":",,"},0]
[null,null,null,null,null,null,null,",,",0]
[null,null,null,null,null,null,null,",,",0]
[null,null,null,null,null,null,null,",,",0]
[null,null,null,null,null,null,null,",,",0]
[null,null,null,null,null,null,null,",,",0]
[null,null,null,null,null,null,null,",,",0]
[null,null,null,null,null,null,null,",,",0]
[null,null,null,null,null,null,null,",,",0]
[null,null,null,null,null,null,null,",,",0]
[null,null,null,null,null,null,null,",,",0]
[null,null,null,null,null,null,null,",,",0]
[null,null,null,null,null,null,null,",,",0]
[null,null,null,null,null,null,null,",,",0]
[null,null,null,null,null,null,null,",,",0]
[null,null,null,null,null,null,null,",,",0]
[null,null,null,null,null,null,null,",,",0]
[null,null,null,null,null,null,null,",,",0]
[null,null,null,null,null,null,null,",,",0]
[null,null,null,null,null,null,null,",,",0]
[null,null,null,null,null,null,null,",,",0]
[null,null,null,null,null,null,null,",,",0]
[null,null,null,null,null,null,null,",,",0]
[null,null,null,null,null,null,null,",,",0]
[null,null,null,null,null,null,null,",,",0]
[null,null,null,null,null,null,null,",,",0]
[null,null,null,null,null,null,null,",,",0]
[null,null,null,null,null,null,null,",,",0]
[null,null,null,null,null,null,null,",,",0]
[null,null,null,null,null,null,null,",,",0]
[null,null,null,null,null,null,null,",,",0]
[null,null,null,null,null,null,null,",,",0]
[null,null,null,null,null,null,null,",,",0]
[null,null,null,null,null,null,null,",,",0]
[null,null,null,null,null,null,null,",,",0]
[null,null,null,null,null,null,null,",,",0]
[null,null,null,null,null,null,null,",,",0]
[null,null,null,null,null,null,null,",,",0]
[null,null,null,null,null,null,null,",,",0]
[null,null,null,null,null,null,null,",,",0]
[null,null,null,null,null,null,null,",,",0]
[null,null,null,null,null,null,null,",,",0]
[null,null,null,null,null,null,null,",,",0]
[null,null,null,null,null,null,null,",,",0]
[null,null,null,null,null,null,null,",,",0]
[null,null,null,null,null,null,null,",,",0]
[null,null,null,null,null,null,null,",,",0]
[null,null,null,null,null,null,null,",,",0]
[null,null,null,null,null,null,null,",,",0]
[null,null,null,null,null,null,null,",,",0]
[null,null,null,null,null,null,null,",,",0]
[null,null,null,null,null,null,null,",,",0]
[null,null,null,null,null,null,null,",,",0]
[null,null,null,null,null,null,null,",,",0]
[null,null,null,null,null,null,null,",,",0]
[null,null,null,null,null,null,null,",,",0]
[null,null,null,null,null,null,null,",,",0]
[null,null,null,null,null,null,null,",,",0]
[null,null,null,null,null,null,null,",,",0]
[null,null,null,null,null,null,null,",,",0]
[null,null,null,null,null,null,null,",,",0]
[null,null,null,null,null,null,null,",,",0]
[null,null,null,null,null,null,null,",,",0]
[null,null,null,null,null,null,null,",,",{"$f":"COUNTIF($H$2:$H$1048576,IF($H258=\",,\",\" \",$H258))","v":0}]
[null,null,null,null,null,null,null,{"$f":"A259&\",\"&B259&\",\"&E259","v":",,"},0]
[null,null,null,null,null,null,null,",,",0]
[null,null,null,null,null,null,null,",,",0]
[null,null,null,null,null,null,null,",,",0]
[null,null,null,null,null,null,null,",,",0]
[null,null,null,null,null,null,null,",,",0]
[null,null,null,null,null,null,null,",,",0]
[null,null,null,null,null,null,null,",,",0]
[null,null,null,null,null,null,null,",,",0]
[null,null,null,null,null,null,null,",,",0]
[null,null,null,null,null,null,null,",,",0]
[null,null,null,null,null,null,null,",,",0]
[null,null,null,null,null,null,null,",,",0]
[null,null,null,null,null,null,null,",,",0]
[null,null,null,null,null,null,null,",,",0]
[null,null,null,null,null,null,null,",,",0]
[null,null,null,null,null,null,null,",,",0]
[null,null,null,null,null,null,null,",,",0]
[null,null,null,null,null,null,null,",,",0]
[null,null,null,null,null,null,null,",,",0]
[null,null,null,null,null,null,null,",,",0]
[null,null,null,null,null,null,null,",,",0]
[null,null,null,null,null,null,null,",,",0]
[null,null,null,null,null,null,null,",,",0]
[null,null,null,null,null,null,null,",,",0]
[null,null,null,null,null,null,null,",,",0]
[null,null,null,null,null,null,null,",,",0]
[null,null,null,null,null,null,null,",,",0]
[null,null,null,null,null,null,null,",,",0]
[null,null,null,null,null,null,null,",,",0]
[null,null,null,null,null,null,null,",,",0]
[null,null,null,null,null,null,null,",,",0]
[null,null,null,null,null,null,null,",,",0]
[null,null,null,null,null,null,null,",,",0]
[null,null,null,null,null,null,null,",,",0]
[null,null,null,null,null,null,null,",,",0]
[null,null,null,null,null,null,null,",,",0]
[null,null,null,null,null,null,null,",,",0]
[null,null,null,null,null,null,null,",,",0]
[null,null,null,null,null,null,null,",,",0]
[null,null,null,null,null,null,null,",,",0]
[null,null,null,null,null,null,null,",,",0]
[null,null,null,null,null,null,null,",,",0]
[null,null,null,null,null,null,null,",,",0]
[null,null,null,null,null,null,null,",,",0]
[null,null,null,null,null,null,null,",,",0]
[null,null,null,null,null,null,null,",,",0]
[null,null,null,null,null,null,null,",,",0]
[null,null,null,null,null,null,null,",,",0]
[null,null,null,null,null,null,null,",,",0]
[null,null,null,null,null,null,null,",,",0]
[null,null,null,null,null,null,null,",,",0]
[null,null,null,null,null,null,null,",,",0]
[null,null,null,null,null,null,null,",,",0]
[null,null,null,null,null,null,null,",,",0]
[null,null,null,null,null,null,null,",,",0]
[null,null,null,null,null,null,null,",,",0]
[null,null,null,null,null,null,null,",,",0]
[null,null,null,null,null,null,null,",,",0]
[null,null,null,null,null,null,null,",,",0]
[null,null,null,null,null,null,null,",,",0]
[null,null,null,null,null,null,null,",,",0]
[null,null,null,null,null,null,null,",,",0]
[null,null,null,null,null,null,null,",,",{"$f":"COUNTIF($H$2:$H$1048576,IF($H322=\",,\",\" \",$H322))","v":0}]
[null,null,null,null,null,null,null,{"$f":"A323&\",\"&B323&\",\"&E323","v":",,"},0]
[null,null,null,null,null,null,null,",,",0]
[null,null,null,null,null,null,null,",,",0]
[null,null,null,null,null,null,null,",,",0]
[null,null,null,null,null,null,null,",,",0]
[null,null,null,null,null,null,null,",,",0]
[null,null,null,null,null,null,null,",,",0]
[null,null,null,null,null,null,null,",,",0]
[null,null,null,null,null,null,null,",,",0]
[null,null,null,null,null,null,null,",,",0]
[null,null,null,null,null,null,null,",,",0]
[null,null,null,null,null,null,null,",,",0]
[null,null,null,null,null,null,null,",,",0]
[null,null,null,null,null,null,null,",,",0]
[null,null,null,null,null,null,null,",,",0]
[null,null,null,null,null,null,null,",,",0]
[null,null,null,null,null,null,null,",,",0]
[null,null,null,null,null,null,null,",,",0]
[null,null,null,null,null,null,null,",,",0]
[null,null,null,null,null,null,null,",,",0]
[null,null,null,null,null,null,null,",,",0]
[null,null,null,null,null,null,null,",,",0]
[null,null,null,null,null,null,null,",,",0]
[null,null,null,null,null,null,null,",,",0]
[null,null,null,null,null,null,null,",,",0]
[null,null,null,null,null,null,null,",,",0]
[null,null,null,null,null,null,null,",,",0]
[null,null,null,null,null,null,null,",,",0]
[null,null,null,null,null,null,null,",,",0]
[null,null,null,null,null,null,null,",,",0]
[null,null,null,null,null,null,null,",,",0]
[null,null,null,null,null,null,null,",,",0]
[null,null,null,null,null,null,null,",,",0]
[null,null,null,null,null,null,null,",,",0]
[null,null,null,null,null,null,null,",,",0]
[null,null,null,null,null,null,null,",,",0]
[null,null,null,null,null,null,null,",,",0]
[null,null,null,null,null,null,null,",,",0]
[null,null,null,null,null,null,null,",,",0]
[null,null,null,null,null,null,null,",,",0]
[null,null,null,null,null,null,null,",,",0]
[null,null,null,null,null,null,null,",,",0]
[null,null,null,null,null,null,null,",,",0]
[null,null,null,null,null,null,null,",,",0]
[null,null,null,null,null,null,null,",,",0]
[null,null,null,null,null,null,null,",,",0]
[null,null,null,null,null,null,null,",,",0]
[null,null,null,null,null,null,null,",,",0]
[null,null,null,null,null,null,null,",,",0]
[null,null,null,null,null,null,null,",,",0]
[null,null,null,null,null,null,null,",,",0]
[null,null,null,null,null,null,null,",,",0]
[null,null,null,null,null,null,null,",,",0]
[null,null,null,null,null,null,null,",,",0]
[null,null,null,null,null,null,null,",,",0]
[null,null,null,null,null,null,null,",,",0]
[null,null,null,null,null,null,null,",,",0]
[null,null,null,null,null,null,null,",,",0]
[null,null,null,null,null,null,null,",,",0]
[null,null,null,null,null,null,null,",,",0]
[null,null,null,null,null,null,null,",,",0]
[null,null,null,null,null,null,null,",,",0]
[null,null,null,null,null,null,null,",,",0]
[null,null,null,null,null,null,null,",,",{"$f":"COUNTIF($H$2:$H$1048576,IF($H386=\",,\",\" \",$H386))","v":0}]
[null,null,null,null,null,null,null,{"$f":"A387&\",\"&B387&\",\"&E387","v":",,"},0]
[null,null,null,null,null,null,null,",,",0]
[null,null,null,null,null,null,null,",,",0]
[null,null,null,null,null,null,null,",,",0]
[null,null,null,null,null,null,null,",,",0]
[null,null,null,null,null,null,null,",,",0]
[null,null,null,null,null,null,null,",,",0]
[null,null,null,null,null,null,null,",,",0]
[null,null,null,null,null,null,null,",,",0]
[null,null,null,null,null,null,null,",,",0]
[null,null,null,null,null,null,null,",,",0]
[null,null,null,null,null,null,null,",,",0]
[null,null,null,null,null,null,null,",,",0]
[null,null,null,null,null,null,null,",,",0]
[null,null,null,null,null,null,null,",,",0]
[null,null,null,null,null,null,null,",,",0]
[null,null,null,null,null,null,null,",,",0]
[null,null,null,null,null,null,null,",,",0]
[null,null,null,null,null,null,null,",,",0]
[null,null,null,null,null,null,null,",,",0]
[null,null,null,null,null,null,null,",,",0]
[null,null,null,null,null,null,null,",,",0]
[null,null,null,null,null,null,null,",,",0]
[null,null,null,null,null,null,null,",,",0]
[null,null,null,null,null,null,null,",,",0]
[null,null,null,null,null,null,null,",,",0]
[null,null,null,null,null,null,null,",,",0]
[null,null,null,null,null,null,null,",,",0]
[null,null,null,null,null,null,null,",,",0]
[null,null,null,null,null,null,null,",,",0]
[null,null,null,null,null,null,null,",,",0]
[null,null,null,null,null,null,null,",,",0]
[null,null,null,null,null,null,null,",,",0]
[null,null,null,null,null,null,null,",,",0]
[null,null,null,null,null,null,null,",,",0]
[null,null,null,null,null,null,null,",,",0]
[null,null,null,null,null,null,null,",,",0]
[null,null,null,null,null,null,null,",,",0]
[null,null,null,null,null,null,null,",,",0]
[null,null,null,null,null,null,null,",,",0]
[null,null,null,null,null,null,null,",,",0]
[null,null,null,null,null,null,null,",,",0]
[null,null,null,null,null,null,null,",,",0]
[null,null,null,null,null,null,null,",,",0]
[null,null,null,null,null,null,null,",,",0]
[null,null,null,null,null,null,null,",,",0]
[null,null,null,null,null,null,null,",,",0]
[null,null,null,null,null,null,null,",,",0]
[null,null,null,null,null,null,null,",,",0]
[null,null,null,null,null,null,null,",,",0]
[null,null,null,null,null,null,null,",,",0]
[null,null,null,null,null,null,null,",,",0]
[null,null,null,null,null,null,null,",,",0]
[null,null,null,null,null,null,null,",,",0]
[null,null,null,null,null,null,null,",,",0]
[null,null,null,null,null,null,null,",,",0]
[null,null,null,null,null,null,null,",,",0]
[null,null,null,null,null,null,null,",,",0]
[null,null,null,null,null,null,null,",,",0]
[null,null,null,null,null,null,null,",,",0]
[null,null,null,null,null,null,null,",,",0]
[null,null,null,null,null,null,null,",,",0]
[null,null,null,null,null,null,null,",,",0]
[null,null,null,null,null,null,null,",,",{"$f":"COUNTIF($H$2:$H$1048576,IF($H450=\",,\",\" \",$H450))","v":0}]
[null,null,null,null,null,null,null,{"$f":"A451&\",\"&B451&\",\"&E451","v":",,"},0]
[null,null,null,null,null,null,null,",,",0]
[null,null,null,null,null,null,null,",,",0]
[null,null,null,null,null,null,null,",,",0]
[null,null,null,null,null,null,null,",,",0]
[null,null,null,null,null,null,null,",,",0]
[null,null,null,null,null,null,null,",,",0]
[null,null,null,null,null,null,null,",,",0]
[null,null,null,null,null,null,null,",,",0]
[null,null,null,null,null,null,null,",,",0]
[null,null,null,null,null,null,null,",,",0]
[null,null,null,null,null,null,null,",,",0]
[null,null,null,null,null,null,null,",,",0]
[null,null,null,null,null,null,null,",,",0]
[null,null,null,null,null,null,null,",,",0]
[null,null,null,null,null,null,null,",,",0]
[null,null,null,null,null,null,null,",,",0]
[null,null,null,null,null,null,null,",,",0]
[null,null,null,null,null,null,null,",,",0]
[null,null,null,null,null,null,null,",,",0]
[null,null,null,null,null,null,null,",,",0]
[null,null,null,null,null,null,null,",,",0]
[null,null,null,null,null,null,null,",,",0]
[null,null,null,null,null,null,null,",,",0]
[null,null,null,null,null,null,null,",,",0]
[null,null,null,null,null,null,null,",,",0]
[null,null,null,null,null,null,null,",,",0]
[null,null,null,null,null,null,null,",,",0]
[null,null,null,null,null,null,null,",,",0]
[null,null,null,null,null,null,null,",,",0]
[null,null,null,null,null,null,null,",,",0]
[null,null,null,null,null,null,null,",,",0]
[null,null,null,null,null,null,null,",,",0]
[null,null,null,null,null,null,null,",,",0]
[null,null,null,null,null,null,null,",,",0]
[null,null,null,null,null,null,null,",,",0]
[null,null,null,null,null,null,null,",,",0]
[null,null,null,null,null,null,null,",,",0]
[null,null,null,null,null,null,null,",,",0]
[null,null,null,null,null,null,null,",,",0]
[null,null,null,null,null,null,null,",,",0]
[null,null,null,null,null,null,null,",,",0]
[null,null,null,null,null,null,null,",,",0]
[null,null,null,null,null,null,null,",,",0]
[null,null,null,null,null,null,null,",,",0]
[null,null,null,null,null,null,null,",,",0]
[null,null,null,null,null,null,null,",,",0]
[null,null,null,null,null,null,null,",,",0]

{"sheet":"import_csv","index":2,"n_rows":4,"n_cols":7,"rows_kept":4,"cut":false,"hidden":true,"merged":[]}
["name","industryType","postalCode","address","phoneNumber","directPhoneNumber","email"]
["qqqq","SERVICE","1234567","qqq","1234567890","1234567890","example@example.com"]
["qqqqqww","FOOD","1234567","qqqq","1234567890","1234567890","example@example.com"]
["aaa","FOOD",null,"qqqqqqq","09012345678","09012345678","example@example.com"]

{"sheet":"IndustryType","index":3,"n_rows":18,"n_cols":2,"rows_kept":18,"cut":false,"hidden":true,"merged":[]}
["業種"]
["display","value"]
["販売","SALES"]
["フード・飲食","FOOD"]
["サービス","SERVICE"]
["イベント","EVENT"]
["軽作業・物流","LIGHTWORK"]
["工場・製造","PRODUCTION"]
["建築・土木","ARCHITECTURE"]
["営業","BUSINESS"]
["オフィス","OFFICE"]
["IT・クリエイティブ/クリエイター","CREATIVE"]
["教育","EDUCATION"]
["医療・介護・福祉","MEDICALCARE"]
["美容・理容・サロン","BEAUTY"]
["調査・モニター","INVESTIGATION"]
["専門職、その他","PROFESSIONAL"]
["ガールズバー・キャバクラ・スナック","NIGHTWORK"]